[Event "Mitropa Cup Open 2022"]
[Site "Corte"]
[Date "2022.05.05"]
[Round "6.1"]
[White "Dragnev, Valentin"]
[Black "Babula, Vlastimil"]
[Result "1/2-1/2"]
[ECO "B66"]
[WhiteElo "2556"]
[BlackElo "2576"]
[Annotator "TA"]
[PlyCount "74"]
[EventDate "2022.04.30"]
[EventType "team-tourn"]
[EventCountry "FRA"]
[SourceTitle "playchess.com"]
[Source "ChessBase"]
[SourceQuality "1"]
[WhiteTeam "Austria"]
[BlackTeam "Czech Republic"]
[WhiteTeamCountry "AUT"]
[BlackTeamCountry "CZE"]
[TimeControl "40/5400+30:1800+30"]

{[%evp 15,74,19,44,26,22,8,13,12,14,24,24,15,0,6,23,0,0,0,0,-40,-39,-44,-40,-41,-39,-46,-34,-59,-60,-45,-75,-111,-102,-102,-85,-137,-126,-130,-135,-135,-138,-129,-148,-149,-141,-152,-100,-109,-110,-113,-99,-174,-27,-31,-18,-15,0,-25,0,0,0]} 1. e4 {[%emt 0:00:02]} c5 {[%emt 0:00:06]} 2. Nf3 {[%emt 0:00:13]} d6 {[%emt 0:00:12]} 3. d4 {[%emt 0:00:21]} cxd4 {[%emt 0:00:06]} 4. Nxd4 {[%emt 0:00:05]} Nf6 {[%emt 0:00:08]} 5. Nc3 {[%emt 0:00:04]} Nc6 {[%emt 0:00:17]} 6. Bg5 {[%emt 0:00:23]} e6 {[%emt 0:00:13]} 7. Qd2 {[%emt 0:00:04]} a6 {[%emt 0:00:48]} 8. O-O-O {[%emt 0:00:11]} Be7 {[%emt 0:00:16]} 9. Kb1 {[%emt 0:02:49] B66: Sicilian: Richter-Rauzer: 7...a6 8 0-0-0 h6.} Bd7 {[%emt 0:00:45]} 10. Nxc6 {[%emt 0:01:02]} Bxc6 {[%emt 0:00:11]} 11. f3 {[%emt 0:00:06]} h6 {[%emt 0:01:01]} 12. Be3 {[%emt 0:11:53]} Qc7 {[%emt 0:02:04] [#]} 13. Ne2 $146 {[%emt 0:05:25]} ({Predecessor:} 13. Bc4 O-O 14. Bb3 b5 15. g4 Nh7 16. h4 Bd7 17. g5 h5 18. g6 fxg6 19. Rhg1 Rf6 20. Bd4 Rf7 21. Rxg6 Nf8 22. Rg2 Kh8 23. Rdg1 Bf6 24. Bxf6 {1-0 (24) Lopez Calderon,A (2120)-Aung,T (2268) Chess.com INT 2020}) 13... O-O {[%emt 0:04:19]} 14. Nd4 {[%emt 0:01:06]} Rfd8 {[%emt 0:02:15]} 15. Bd3 {[%emt 0:07:26]} Nd7 $1 {[%emt 0:22:06][%cal Bf6d7,Bd7e5,Be5d3][%mdl 32]} 16. g4 {[%emt 0:02:16]} d5 {[%emt 0:03:31]} 17. exd5 {[%emt 0:30:46]} Bxd5 {[%emt 0:00:51]} 18. g5 {[%emt 0:00:39]} hxg5 {[%emt 0:05:55]} 19. Bxg5 {[%emt 0:01:24]} Ne5 {[%emt 0:07:08]} 20. Rhg1 {[%emt 0:04:20]} Nxd3 $40 {[%emt 0:06:12][%mdl 128] Black mounts an attack.} (20... Nxf3 21. Nxf3 Bxf3 22. Bxe7 Qxe7 23. Qh6 $16) 21. Bxe7 {[%emt 0:03:34]} Qxe7 {[%emt 0:00:51]} (21... Bxa2+ $2 22. Kxa2 Qxe7 23. Qxd3 $18 (23. Qh6 Nb4+ 24. Kb3 Qf8 $16)) 22. Qxd3 {[%emt 0:02:40]} Qf6 {[%emt 0:05:14]} 23. c4 {[%emt 0:01:49] [#]} e5 $1 {[%emt 0:06:06][%cal Be6e5,Be5d4,Bd4d3,Bd3d2][%mdl 32]} 24. cxd5 {[%emt 0:07:14]} Rxd5 {[%emt 0:01:11][%mdl 64] Pin} 25. Qb3 {[%emt 0:00:01]} Rxd4 $17 {[%emt 0:00:48]} ({Resist} 25... Rad8 26. Ne2 Rxd1+ 27. Rxd1 $16) 26. Qxb7 {[%emt 0:00:53]} Rad8 {[%emt 0:00:41]} 27. Rxd4 {[%emt 0:00:29]} exd4 {[%emt 0:04:33][%mdl 4096] Endgame KQR-KQR} 28. Rd1 {[%emt 0:01:54]} d3 {[%emt 0:01:56]} 29. Qe4 {[%emt 0:01:22]} d2 {[%emt 0:02:55]} 30. a3 {[%emt 0:02:40] [#]} g6 {[%emt 0:03:09]} (30... Rd4 $142 $1 {[%cal Rd4e4]} 31. Qe8+ Kh7) 31. Qe3 {[%emt 0:04:36]} Qf5+ {[%emt 0:03:42]} 32. Qe4 {[%emt 0:00:09]} Qc5 {[%emt 0:00:58] And now ...Rc8 would win.} 33. Qb4 {[%emt 0:02:38] [#]} (33. Qe2 $17) 33... Qf2 {[%emt 0:08:58]} (33... Qe5 $1 $19 {[%cal Re5e2] Threatens to win with ...Qe2.} 34. Qc3 (34. Rxd2 $2 Qe1+ 35. Kc2 Rc8+ 36. Kd3 Qf1+ 37. Ke3 Re8+ 38. Kd4 Qxf3 $19) 34... Qxh2) 34. Kc2 $1 $11 {[%emt 0:04:27][%cal Rd1d2]} Rc8+ {[%emt 0:04:11]} 35. Kb1 {[%emt 0:00:22]} Rd8 {[%emt 0:00:17] Strongly threatening ...Qe2.} 36. Kc2 $1 {[%emt 0:00:01]} Qxh2 {[%emt 0:00:48] aiming for ...Qc7+.} 37. Rxd2 {[%emt 0:00:16]} Rc8+ {[%emt 0:02:12] Weighted Error Value: White=0.09 (flawless) /Black=0.15 (very precise)} 1/2-1/2

[Event "Mitropa Cup Open 2022"]
[Site "Corte"]
[Date "2022.05.05"]
[Round "6.2"]
[White "Kozak, Adam"]
[Black "Druska, Juraj"]
[Result "1/2-1/2"]
[ECO "D41"]
[WhiteElo "2532"]
[BlackElo "2508"]
[Annotator "TA"]
[PlyCount "108"]
[EventDate "2022.04.30"]
[EventType "team-tourn"]
[EventCountry "FRA"]
[SourceTitle "playchess.com"]
[Source "ChessBase"]
[SourceQuality "1"]
[WhiteTeam "Hungary"]
[BlackTeam "Slovakia"]
[WhiteTeamCountry "HUN"]
[BlackTeamCountry "SVK"]
[TimeControl "40/5400+30:1800+30"]

{[%evp 14,108,16,17,10,8,22,22,22,12,22,0,18,19,35,35,18,7,8,10,10,16,25,13,18,20,43,43,45,39,51,40,39,34,61,57,61,61,61,62,70,62,89,71,78,71,89,77,77,62,89,77,90,90,178,58,90,0,153,0,62,62,62,56,56,56,56,0,0,0,0,0,0,0,0,0,0,0,0,0,0,0,0,0,0,0,0,0,0,0,0,0,0,0,0,0,0]} 1. c4 {[%emt 0:00:45]} e6 {[%emt 0:00:33]} 2. Nc3 {[%emt 0:00:50]} d5 {[%emt 0:00:10]} 3. d4 {[%emt 0:00:20]} Nf6 {[%emt 0:00:34]} 4. Nf3 {[%emt 0:00:21]} c5 {[%emt 0:00:16]} 5. cxd5 {[%emt 0:01:29]} Nxd5 {[%emt 0:00:13]} 6. g3 {[%emt 0:01:14]} Nxc3 {[%emt 0:00:11]} 7. bxc3 {[%emt 0:00:13]} cxd4 {[%emt 0:00:05]} 8. cxd4 {[%emt 0:01:22]} Bb4+ {[%emt 0:00:06] D41: Queen's Gambit Declined: Semi-Tarrasch with 5 cxd5.} 9. Bd2 {[%emt 0:00:06]} Bxd2+ {[%emt 0:00:04]} 10. Qxd2 {[%emt 0:00:09]} b6 {[%emt 0:00:05]} 11. Bg2 {[%emt 0:01:36]} Bb7 {[%emt 0:00:07] [#]} 12. Qc2 $146 {[%emt 0:06:16]} ({Predecessor:} 12. O-O O-O 13. Rfc1 Nd7 14. Qd3 Nf6 15. Ne5 Bxg2 16. Kxg2 Qd5+ 17. f3 Rac8 18. e4 {½-½ (28) Aronian,L (2775)-Ding,L (2801) London 2019}) 12... Nd7 {[%emt 0:25:00]} (12... Nc6 $5 {[%cal Rc6d4]}) 13. O-O {[%emt 0:01:51]} Rc8 {[%emt 0:02:10]} 14. Qa4 {[%emt 0:05:52]} a6 {[%emt 0:00:14]} 15. Ne5 {[%emt 0:11:17]} b5 {[%emt 0:00:53]} 16. Qa3 {[%emt 0:00:22]} Bxg2 {[%emt 0:00:15]} 17. Kxg2 {[%emt 0:00:11]} Nxe5 {[%emt 0:28:27]} 18. dxe5 {[%emt 0:00:14]} Qd5+ {[%emt 0:00:06]} 19. Kg1 {[%emt 0:00:13] And now Rac1 would win.} Qc5 {[%emt 0:00:18]} 20. Qxa6 {[%emt 0:01:00]} O-O {[%emt 0:00:09]} 21. Rab1 {[%emt 0:05:44]} Rb8 {[%emt 0:06:29]} 22. Qd6 {[%emt 0:05:22]} Qc2 {[%emt 0:01:11]} 23. Qd3 {[%emt 0:01:33]} Rfc8 {[%emt 0:02:54]} 24. Rfd1 {[%emt 0:08:59]} Qxa2 {[%emt 0:01:26]} 25. Rxb5 {[%emt 0:00:16]} g6 {[%emt 0:00:11]} 26. Rxb8 {[%emt 0:03:01]} Rxb8 $14 {[%emt 0:00:01][%mdl 4096] Endgame KQR-KQR} 27. Kg2 {[%emt 0:01:56]} h5 {[%emt 0:02:31]} 28. Qe3 {[%emt 0:01:23]} Qc2 {[%emt 0:04:33]} 29. Rd3 {[%emt 0:03:39]} Rc8 {[%emt 0:03:15]} 30. Rd2 {[%emt 0:22:32]} Qc6+ {[%emt 0:01:26]} 31. f3 {[%emt 0:02:47]} Qc1 {[%emt 0:03:25]} 32. Qf4 {[%emt 0:01:30][%cal Od2d8]} Qc7 {[%emt 0:09:45] Inhibits Rd8+.} 33. Qf6 {[%emt 0:04:13] White is more active.} Qc1 {[%emt 0:03:17]} (33... Qa7 $16 {was worth a try.}) 34. Qg5 {[%emt 0:04:26]} (34. Rd7 $18 Rf8 35. Kh3) 34... Qb1 {[%emt 0:02:46]} 35. Qf6 {[%emt 0:04:08]} ({White should try} 35. Kh3) 35... Qc1 $1 $16 {[%emt 0:03:06]} 36. Qf4 {[%emt 0:00:43]} (36. Rd7 $16 Rf8 37. Kh3) 36... Qc7 $14 {[%emt 0:00:38]} 37. Kh3 {[%emt 0:00:33]} Qe7 {[%emt 0:00:13]} 38. Qf6 {[%emt 0:00:32]} (38. Qh6 {looks sharper.} Ra8 39. Rb2 Qa3 40. Rc2) 38... Qxf6 {[%emt 0:00:17]} 39. exf6 {[%emt 0:00:02] Hoping for f4. KR-KR} g5 {[%emt 0:00:12]} 40. g4 {[%emt 0:00:44]} (40. Rd7 $14) 40... Rc4 $11 {[%emt 0:02:12] The position is equal.} 41. gxh5 {[%emt 0:24:07]} Rh4+ {[%emt 0:01:47]} 42. Kg3 {[%emt 0:00:12]} Rxh5 {[%emt 0:00:08]} 43. Rd7 {[%emt 0:04:02] Strongly threatening Ra7.} Rh6 $1 {[%emt 0:01:16]} 44. Rb7 {[%emt 0:02:34] Black must now prevent Rb5.} Rxf6 {[%emt 0:01:12]} 45. Rb5 {[%emt 0:00:09]} Rf5 {[%emt 0:00:46]} 46. Rxf5 {[%emt 0:00:16]} exf5 {[%emt 0:00:01] K3P-K3P} 47. h4 f6 48. hxg5 {[%emt 0:01:19]} fxg5 {[%emt 0:00:37] KPP-KPP} 49. f4 {[%emt 0:00:32]} g4 {[%emt 0:00:14]} 50. e4 fxe4 {[%emt 0:00:05] [#] ( -> ...e3)} 51. Kxg4 {[%emt 0:00:11]} Kf7 {[%emt 0:00:04]} 52. f5 {[%emt 0:00:12]} Kf6 {[%emt 0:00:06]} 53. Kf4 {[%emt 0:00:03]} e3 {[%emt 0:00:03]} 54. Kxe3 {[%emt 0:00:02]} Kxf5 {Weighted Error Value: White=0.17 (very precise) /Black=0.06 (flawless)} 1/2-1/2

[Event "Mitropa Cup Open 2022"]
[Site "Corte"]
[Date "2022.05.05"]
[Round "6.2"]
[White "Kusa, Jakub"]
[Black "Blohberger, Felix"]
[Result "1/2-1/2"]
[ECO "E11"]
[WhiteElo "2338"]
[BlackElo "2510"]
[Annotator "TA"]
[PlyCount "61"]
[EventDate "2022.04.30"]
[EventType "team-tourn"]
[EventCountry "FRA"]
[SourceTitle "playchess.com"]
[Source "ChessBase"]
[SourceQuality "1"]
[WhiteTeam "Czech Republic"]
[BlackTeam "Austria"]
[WhiteTeamCountry "CZE"]
[BlackTeamCountry "AUT"]
[TimeControl "40/5400+30:1800+30"]

{[%evp 17,61,20,44,29,18,22,24,16,18,22,25,25,56,48,44,45,46,62,52,6,4,4,7,0,0,0,0,0,0,0,0,0,0,0,0,0,0,0,0,0,0,0,0,0,0,0]} 1. d4 {[%emt 0:00:03]} Nf6 {[%emt 0:01:19]} 2. c4 {[%emt 0:00:13]} e6 {[%emt 0:00:51]} 3. Nf3 {[%emt 0:00:26]} Bb4+ {[%emt 0:00:15]} 4. Bd2 {[%emt 0:00:10]} c5 {[%emt 0:02:04]} 5. Bxb4 {[%emt 0:00:26]} cxb4 {[%emt 0:00:05]} 6. g3 {[%emt 0:00:44]} b6 {[%emt 0:00:38]} 7. Bg2 {[%emt 0:01:06]} Bb7 {[%emt 0:00:05]} 8. O-O {[%emt 0:01:15]} O-O {[%emt 0:00:03]} 9. a3 {[%emt 0:01:38]} Qe7 {[%emt 0:03:01]} 10. Qd2 {[%emt 0:06:18] E16: Queen's Indian: 4 g3 Bb7 5 Bg2 Bb4+.} Na6 {[%emt 0:09:44]} 11. Ne5 {[%emt 0:04:11]} Bxg2 {[%emt 0:00:41]} 12. Kxg2 {[%emt 0:00:09] White has an edge.} Rfc8 {[%emt 0:08:05] [#]} 13. b3 $146 {[%emt 0:08:26]} ({Predecessor:} 13. Rc1 d6 14. Nd3 bxa3 15. Nxa3 d5 16. b3 dxc4 17. Nxc4 Rd8 18. e3 Qb7+ 19. f3 {0-1 (43) Bird,A (2223)-Kristjansson,S (2486) Reykjavik 2013}) 13... d6 {[%emt 0:08:31]} 14. Nd3 {[%emt 0:05:16]} Qb7+ {[%emt 0:13:43]} 15. f3 {[%emt 0:02:21]} b5 {[%emt 0:02:02]} 16. cxb5 {[%emt 0:05:46]} Qxb5 {[%emt 0:01:32]} 17. axb4 {[%emt 0:01:45]} Qb6 {[%emt 0:06:01]} 18. Nc3 (18. Ra4 $14) 18... Qxd4 $11 {[%emt 0:05:26] The position is equal.} 19. Rxa6 {[%emt 0:06:25]} Rxc3 20. Qf4 {[%emt 0:04:03]} Qxf4 {[%emt 0:02:46]} 21. gxf4 {[%emt 0:01:14]} Rxb3 {[%emt 0:02:36]} 22. Rxd6 {[%emt 0:02:13]} Nd5 {[%emt 0:04:43] [#] And now ...Ne3+ would win.} 23. Ra1 {[%emt 0:01:07][%cal Oa1a7] Threatens to win with Rxa7!} h6 {[%emt 0:03:39]} 24. f5 {[%emt 0:04:59]} Ne3+ 25. Kf2 {[%emt 0:00:05]} Nxf5 {[%emt 0:06:00]} 26. Rda6 {[%emt 0:00:08]} Rd8 {[%emt 0:02:37]} 27. Rxa7 {[%emt 0:00:28]} Rdxd3 {[%emt 0:00:35]} 28. exd3 Rb2+ {[%emt 0:00:42]} 29. Ke1 {[%emt 0:06:44]} Rxb4 {[%emt 0:10:30]} 30. R7a4 {[%emt 0:00:43]} Rb2 {[%emt 0:01:13]} 31. R4a2 {[%emt 0:00:16] Weighted Error Value: White=0.03 (flawless) /Black=0.03 (flawless)} 1/2-1/2

[Event "Mitropa Cup Open 2022"]
[Site "Corte"]
[Date "2022.05.05"]
[Round "6.3"]
[White "Diermair, Andreas"]
[Black "Mica, Marek"]
[Result "0-1"]
[ECO "D35"]
[WhiteElo "2461"]
[BlackElo "2343"]
[Annotator "TA"]
[PlyCount "84"]
[EventDate "2022.04.30"]
[EventType "team-tourn"]
[EventCountry "FRA"]
[SourceTitle "playchess.com"]
[Source "ChessBase"]
[SourceQuality "1"]
[WhiteTeam "Austria"]
[BlackTeam "Czech Republic"]
[WhiteTeamCountry "AUT"]
[BlackTeamCountry "CZE"]
[TimeControl "40/5400+30:1800+30"]

{[%evp 26,84,0,0,7,14,6,9,12,10,35,25,33,22,33,35,37,30,36,38,34,0,23,0,18,0,7,0,33,-91,0,0,39,-79,-65,-55,-32,-39,0,0,0,0,211,210,184,181,250,0,0,-420,-412,-412,-401,-519,-528,-527,-523,-503,-513,-929,-468]} 1. d4 {[%emt 0:00:03]} Nf6 {[%emt 0:00:08]} 2. c4 {[%emt 0:00:04]} e6 {[%emt 0:00:06]} 3. Nc3 {[%emt 0:00:06]} d5 {[%emt 0:01:59]} 4. cxd5 {[%emt 0:01:55]} Nxd5 {[%emt 0:00:07]} 5. e4 {[%emt 0:01:02]} Nxc3 {[%emt 0:00:06]} 6. bxc3 {[%emt 0:00:02]} c5 {[%emt 0:00:10]} 7. Nf3 {[%emt 0:01:41]} cxd4 {[%emt 0:00:05]} 8. cxd4 {[%emt 0:00:03]} Bb4+ {[%emt 0:00:07]} 9. Bd2 {[%emt 0:00:02]} Bxd2+ {[%emt 0:00:06]} 10. Qxd2 {[%emt 0:00:03]} O-O {[%emt 0:00:08]} 11. Bc4 {[%emt 0:00:05]} Nd7 {[%emt 0:00:07]} 12. O-O {[%emt 0:00:09]} b6 {[%emt 0:00:18]} 13. Rad1 {[%emt 0:00:06]} Bb7 {[%emt 0:00:10]} 14. Rfe1 {[%emt 0:00:04]} Rc8 {[%emt 0:00:09] D41: Queen's Gambit Declined: Semi-Tarrasch with 5 cxd5.} 15. Bb3 {[%emt 0:00:08]} h6 {[%emt 0:00:20]} 16. Re3 {[%emt 0:11:53]} Qf6 {[%emt 0:01:59] The position is equal.} 17. Qe2 {[%emt 0:01:18] [#]} e5 $146 {[%emt 0:15:43]} ({Predecessor:} 17... Rfd8 18. e5 Qe7 19. Nd2 Nf8 20. Ne4 Bxe4 21. Rxe4 Rc3 22. Qd2 Rdc8 23. Re3 Qb4 24. Rxc3 Qxc3 {½-½ (65) Dudin,G (2332)-Stoyanov,T (2416) Heraklion 2019}) 18. d5 {[%emt 0:08:42]} Nc5 {[%emt 0:03:55]} 19. Qb2 {[%emt 0:06:09]} Rfe8 {[%emt 0:09:32]} 20. Bc4 {[%emt 0:13:15][%cal Bb3c4,Bc4b5,Bb5e2,Be2g4][%mdl 32]} Qd6 {[%emt 0:10:37]} 21. Bb5 {[%emt 0:03:10]} Re7 {[%emt 0:00:36]} 22. Nh4 {[%emt 0:07:58] Nf5 is the strong threat.} g6 {[%emt 0:01:22] Against Nf5} 23. Qd2 {[%emt 0:04:15]} a6 {[%emt 0:05:12]} 24. Be2 {[%emt 0:02:41] And now Rh3 would win.} Kh7 {[%emt 0:09:17]} 25. Bg4 {[%emt 0:07:16]} Rd8 {[%emt 0:07:56]} 26. Rde1 {[%emt 0:08:58]} Qf6 {[%emt 0:06:20]} 27. Rh3 {[%emt 0:07:20] [#]} (27. Nf3 $14) 27... Qf4 {[%emt 0:02:40]} (27... Nxe4 $1 $17 28. Rxe4 Rxd5) 28. Qe2 $11 {[%emt 0:00:14][%cal Oh4f5]} a5 {[%emt 0:02:52] [#]} 29. Rf3 {[%emt 0:07:29]} Qg5 {[%emt 0:01:35] Black is more active.} 30. g3 {[%emt 0:01:45]} Ba6 {[%emt 0:02:16]} 31. Qd1 {[%emt 0:02:10] [#]} Bd3 $1 {[%emt 0:01:14]} 32. Rfe3 {[%emt 0:01:34]} Bxe4 {[%emt 0:05:20]} 33. d6 {[%emt 0:00:12]} (33. Rxe4 Nxe4 34. Rxe4 f5 35. Bxf5 (35. Nf3 $2 Qf6 $19) 35... gxf5 $17) 33... Ra7 {[%emt 0:01:26]} (33... Bc6 34. f4 Qf6 35. fxe5 Rxe5 36. Rxe5 $16) (33... Qf6 $1 $11 34. dxe7 Rxd1) 34. Rxe4 $18 {[%emt 0:02:07]} Nxe4 {[%emt 0:00:19]} 35. Rxe4 {[%emt 0:00:04]} f5 {[%emt 0:02:31] [#]} (35... a4 {is a better defense.} 36. Bh3 Qe7) 36. Rxe5 $2 {[%emt 0:02:45]} ({Don't blunder} 36. Nf3 $2 Qf6 37. Bxf5 gxf5 38. Rxe5 Qxd6 $19) (36. Bxf5 $1 $18 {[%mdl 512]} gxf5 37. Rxe5) 36... Qxg4 $11 {[%emt 0:01:10]} 37. Qe1 {[%emt 0:00:46][%mdl 8192]} (37. Qd3 $11 {and White has nothing to worry.}) 37... Rxd6 $19 {[%emt 0:02:14] Hoping for ...Rd1.} 38. Re7+ {[%emt 0:00:14]} Kg8 {[%emt 0:00:43] Strongly threatening ...Rd1.} 39. Re8+ {[%emt 0:01:22]} ({Much weaker is} 39. Rxa7 Rd1 40. Re7 (40. Ra8+ $2 Kf7 $19) 40... Rxe1+ 41. Rxe1 g5) 39... Kf7 {[%emt 0:00:18] Black is clearly winning.} 40. Kg2 {[%emt 0:00:28]} Qd1 {[%emt 0:01:13]} 41. Qe3 {[%emt 0:01:31] aiming for Rh8.} Qd2 {[%emt 0:00:45]} 42. Qb3+ {[%emt 0:06:33]} (42. Nf3 $142 Qxe3 43. Rxe3) 42... Qd5+ {[%emt 0:00:08] Weighted Error Value: White=0.65/Black=0.23 (precise)} 0-1

[Event "Mitropa Cup Open 2022"]
[Site "Corte"]
[Date "2022.05.05"]
[Round "6.3"]
[White "Sahidi, Samir"]
[Black "Nemeth, Miklos"]
[Result "0-1"]
[ECO "E17"]
[WhiteElo "2459"]
[BlackElo "2446"]
[Annotator "TA"]
[PlyCount "121"]
[EventDate "2022.04.30"]
[EventType "team-tourn"]
[EventCountry "FRA"]
[SourceTitle "playchess.com"]
[Source "ChessBase"]
[SourceQuality "1"]
[WhiteTeam "Slovakia"]
[BlackTeam "Hungary"]
[WhiteTeamCountry "SVK"]
[BlackTeamCountry "HUN"]
[TimeControl "40/5400+30:1800+30"]

{[%evp 25,121,0,0,0,0,-7,6,0,0,0,0,0,0,0,0,-19,-12,-22,0,-48,-39,-65,-66,-75,-79,-81,-84,-79,-87,-84,-79,-99,-95,-90,-89,-108,-101,-120,-119,-115,-114,-122,-122,-122,-102,-100,-79,-85,-87,-204,-211,-211,-196,-196,-196,-223,-196,-223,-204,-223,-196,-223,-223,-223,-173,-197,-173,-197,-197,-189,-173,-229,-229,-274,-274,-266,-266,-266,-264,-653,-595,-546,-156,-1140,-159,-29976,-29977,-29972,-29960,-5217,-4502,-29987,-29988,-29989,-29990,-29991,-29978,-5028]} 1. d4 {[%emt 0:00:09]} Nf6 {[%emt 0:00:07]} 2. c4 {[%emt 0:00:08]} e6 {[%emt 0:00:03]} 3. Nf3 {[%emt 0:00:16][%cal Bg1f3,Bf3h4,Bh4f5][%mdl 32]} b6 {[%emt 0:00:20]} 4. g3 {[%emt 0:00:11]} Bb7 {[%emt 0:00:25]} 5. Bg2 {[%emt 0:00:15]} Be7 {[%emt 0:00:33]} 6. O-O {[%emt 0:00:41]} O-O {[%emt 0:00:05]} 7. d5 {[%emt 0:02:32]} exd5 {[%emt 0:00:08]} 8. Nh4 {[%emt 0:00:02]} c6 {[%emt 0:00:11][%cal Bc7c6,Bc6d5][%mdl 32]} 9. cxd5 Nxd5 10. Nf5 {[%emt 0:00:53]} Nc7 {[%emt 0:01:54]} 11. e4 {[%emt 0:02:25]} d5 {[%emt 0:05:49]} 12. exd5 {[%emt 0:10:12]} cxd5 {[%emt 0:01:24]} 13. Nc3 {[%emt 0:04:37]} Bf6 {[%emt 0:04:54]} 14. Bf4 {[%emt 0:00:08] Black must now prevent Bxc7. E17: Queen's Indian: 4 g3 Bb7 5 Bg2 Be7.} Nba6 {[%emt 0:00:21]} 15. Rc1 {[%emt 0:01:39]} Bc8 {[%emt 0:07:48]} 16. Nd6 {[%emt 0:13:18] [#] The position is equal.} Be6 $146 {[%emt 0:00:13]} ({Predecessor:} 16... Bxc3 17. bxc3 Be6 18. c4 dxc4 19. Qh5 Qd7 20. Be4 g6 21. Qh6 Nd5 22. Bxd5 Bxd5 23. Rfd1 Nb4 24. Rd4 f6 25. Rb1 Qe6 26. Nb5 Bc6 27. Bd6 Qf5 28. Rxb4 Qf3 {0-1 (28) Chandler,C-Strand,T ICCF corr 1983}) 17. Nxd5 {[%emt 0:01:35]} Nxd5 {[%emt 0:00:22]} 18. Bxd5 {[%emt 0:00:27]} Bxd5 {[%emt 0:00:04]} 19. Qxd5 {[%emt 0:00:11]} Bxb2 {[%emt 0:01:32]} 20. Rb1 {[%emt 0:06:40]} Bf6 {[%emt 0:03:56]} 21. Rfd1 {[%emt 0:10:34]} Qd7 {[%emt 0:06:31]} 22. Qc4 {[%emt 0:05:42]} (22. a4 $11) 22... Nc5 $15 {[%emt 0:00:44]} 23. Be3 {[%emt 0:03:11]} Rfd8 {[%emt 0:12:14][%cal Bf8d8,Bd8d6,Bd6e6][%mdl 32]} 24. Rd2 {[%emt 0:04:23]} Qe6 {[%emt 0:02:23]} 25. Bxc5 {[%emt 0:05:55] [#] aiming for Qxe6.} Rxd6 {[%emt 0:03:34]} 26. Qxe6 {[%emt 0:00:21]} Rxe6 {[%emt 0:00:04]} 27. Be3 {[%emt 0:00:14]} Kf8 {[%emt 0:05:05]} 28. Rc1 {[%emt 0:01:56]} Rd8 {[%emt 0:03:49]} 29. Rdc2 {[%emt 0:02:35]} Ke8 {[%emt 0:03:23]} 30. Kg2 {[%emt 0:00:42]} Bd4 {[%emt 0:02:01]} 31. Bf4 {[%emt 0:02:07]} Bc5 {[%emt 0:02:31]} 32. a4 {[%emt 0:01:17]} a5 {[%emt 0:04:15]} 33. Bd2 {[%emt 0:01:22][%cal Od2a5]} Ra8 {[%emt 0:03:10]} 34. Bc3 {[%emt 0:01:20]} f6 {[%emt 0:00:18]} 35. Kf3 {[%emt 0:00:21]} Rd8 {[%emt 0:01:45]} 36. Bxa5 {[%emt 0:05:01]} Rd4 {[%emt 0:01:46] Black is more active.} 37. Rxc5 {[%emt 0:09:27]} (37. Ra1 $17 {keeps fighting.}) 37... bxc5 $19 {[%emt 0:00:07]} 38. Rxc5 {[%emt 0:00:11]} Rxa4 $17 {[%emt 0:01:03][%mdl 4096] Endgame KRR-KRB} 39. Bd2 {[%emt 0:00:26]} g5 {[%emt 0:00:26]} 40. Be3 {[%emt 0:01:48]} Kf7 {[%emt 0:01:01]} 41. h3 {[%emt 0:31:29]} Kg6 {[%emt 0:32:36]} 42. Rc8 {[%emt 0:00:00]} h6 {[%emt 0:00:00]} 43. Rg8+ {[%emt 0:00:00]} Kf7 {[%emt 0:00:00]} 44. Rc8 {[%emt 0:00:00]} f5 {[%emt 0:00:00]} 45. Rb8 {[%emt 0:00:00]} Rd6 {[%emt 0:00:00]} 46. Rb5 {[%emt 0:00:00]} Kg6 {[%emt 0:00:00]} 47. Rb8 {[%emt 0:00:00]} Rc6 {[%emt 0:00:00]} 48. Rb3 {[%emt 0:00:00]} (48. Rd8 {was necessary.}) 48... h5 $19 49. Rb8 {[#]} f4 $1 {[%emt 0:00:00]} 50. gxf4 {[%emt 0:00:00]} gxf4 {[%emt 0:00:00]} 51. Bd2 {[%emt 0:00:00]} Rd6 {[%emt 0:00:37]} 52. Bc1 {[%emt 0:00:00]} (52. Rb2) 52... Rc4 {[%emt 0:03:05]} 53. Bb2 {[%emt 0:00:00]} Rd2 $2 {[%emt 0:00:30]} (53... Rd3+ $19 {has better winning chances.} 54. Kg2 f3+ 55. Kh2 Rc2 56. Rb6+ Kf5 57. Rb5+ Ke6) 54. Kg2 $2 {[%emt 0:00:00]} (54. Rb6+ $17 Kf5 55. Rb5+ Ke6 56. Rb6+ Rd6 57. Rb3) 54... f3+ $2 {[%emt 0:04:29]} (54... Rcc2 $19 {is more deadly.} 55. Rb6+ Kf5 56. Rf6+ Ke4 57. Re6+ Kd5 58. Re5+ Kd6) 55. Kh2 $2 {[%emt 0:00:00] White does not recover from this.} (55. Kxf3 $17 Rcc2 56. Rb6+ Kf7 57. Rb7+ Ke6 58. Bh8) 55... h4 {[%emt 0:00:30]} 56. Rb6+ {[%emt 0:00:00]} Kf7 {[%emt 0:01:39]} 57. Rf6+ {[%emt 0:08:27]} Ke8 {[%emt 0:00:11]} 58. Re6+ {[%emt 0:00:31]} Kd7 {[%emt 0:00:30] Black mates.} 59. Re1 {[%emt 0:00:30]} Rxf2+ {[%emt 0:02:15]} 60. Kh1 {[%emt 0:01:35]} Rcc2 {[%emt 0:00:28]} 61. Be5 {[%emt 0:01:42] Weighted Error Value: White=0.63/Black=0.44} 0-1